bitfinex/quotes_ETHUSD_20251125
["timestamp","ask_amount","ask_price","bid_price","bid_amount"]
[1764055921587,0.002,2920.3,2920.2,0.2222]
[1764055921789,0.002,2920.3,2920.2,3.64662298]
[1764055921992,0.002,2920.3,2920.2,3.65082298]
[1764055922186,0.002,2920.3,2920.2,3.75082298]
[1764055922485,0.002,2920.3,2920.2,0.218]
[1764055922678,0.4655,2920.3,2920.2,0.218]
[1764055923168,0.002,2920.3,2920.2,0.218]
[1764055923760,0.002,2920.3,2920.2,3.64662298]
[1764055923971,0.002,2920.3,2920.2,0.2222]
[1764055924258,0.002,2920.3,2920.2,0.218]
[1764055925060,0.4655,2920.3,2920.2,0.218]
[1764055925665,0.9533,2920.3,2920.1,0.001]
[1764055925869,0.4635,2920.2,2920.1,0.001]
[1764055926070,0.9513,2920.2,2920.1,0.219]
[1764055926392,0.002,2920.3,2920.1,0.2232]
[1764055927066,0.4635,2920.2,2920.1,0.001]
[1764055927270,0.9513,2920.2,2920.1,0.219]
[1764055927580,0.4635,2920.2,2920.1,0.219]
[1764055927798,0.9513,2920.2,2920.1,0.219]
[1764055929012,4.37572298,2920.2,2920.1,0.219]
[1764055934194,0.9513,2920.2,2920.1,0.219]
[1764055934436,0.4635,2920.2,2920.1,0.219]
[1764055934973,3.88792298,2920.2,2920.1,0.219]
[1764055935212,0.002,2920.3,2920.1,0.219]
[1764055935384,0.9513,2920.2,2920.1,0.219]
[1764055936116,0.9513,2920.2,2920.1,0.218]
[1764055936702,0.4635,2920.2,2920.1,0.218]
[1764055937014,0.002,2920.3,2920.1,0.2222]
[1764055939215,0.002,2920.3,2920.1,0.218]
[1764055940208,0.002,2920.3,2920.2,0.0042]
[1764055942342,0.4566,2920.3,2920.1,0.218]
[1764055944047,0.4546,2920.2,2920.1,0.218]
[1764055944364,0.4546,2920.2,2920.1,0.001]
[1764055944649,0.9058,2920.2,2920.1,0.218]
[1764055945516,4.33022298,2920.2,2920.1,0.218]
[1764055945712,4.33022298,2920.2,2920.1,0.001]
[1764055945917,4.33022298,2920.2,2920.1,0.218]
[1764055947747,7.6951679,2920.2,2920.1,0.001]
[1764055947933,0.002,2920.3,2920.1,0.001]
[1764055948427,0.4546,2920.2,2920.1,0.001]
[1764055948957,0.9058,2920.2,2920.1,0.001]
[1764055949332,0.9058,2920.2,2920.1,0.218]
[1764055949734,4.33022298,2920.2,2920.1,0.218]
[1764055949950,0.4546,2920.2,2920.1,0.218]
[1764055950341,4.33022298,2920.2,2920.1,0.218]
[1764055950956,7.6951679,2920.2,2920.1,0.001]
[1764055953463,4.73572698,2920.2,2920.1,0.001]
[1764055953651,7.6951679,2920.2,2920.1,0.001]
[1764055953968,8.42076201,2920.2,2920.1,0.001]
[1764055960768,0.002,2920.3,2920.1,0.0052]
[1764055961085,0.002,2920.3,2920.2,0.0042]
[1764055961607,0.002,2920.3,2920.2,0.1084]
[1764055961784,0.002,2920.3,2920.2,3.06784092]
[1764055962455,0.002,2920.3,2920.2,3.79343503]
[1764055963306,0.002,2920.3,2920.2,7.21785801]
[1764055963978,0.002,2920.3,2920.2,7.43485801]
[1764055964701,0.002,2920.3,2920.2,4.47541709]
[1764055966676,0.002,2920.6,2920.3,0.72559411]
[1764055966880,0.1962,2922.9,2921.5,0.1]
[1764055967081,0.1962,2922.9,2921.5,6.56548844]
[1764055967286,0.1962,2922.9,2921.5,5.46378627]
[1764055967486,0.4512,2922.8,2921.5,7.80732597]
[1764055967684,0.4512,2922.8,2921.5,7.90732597]
[1764055968085,0.4512,2922.8,2921.5,12.60208694]
[1764055968286,0.4512,2922.8,2921.5,11.65708694]
[1764055969106,0.4512,2922.8,2921.5,11.19539027]
[1764055969309,0.1962,2922.9,2921.5,11.19539027]
[1764055970382,3.61746293,2922.9,2921.5,11.19539027]
[1764055970582,0.1962,2922.9,2921.5,11.19539027]
[1764055971532,3.61746443,2922.9,2921.5,11.19539027]
[1764055971700,0.4532,2922.8,2921.5,11.19539027]
[1764055972100,0.4532,2922.5,2921.5,8.56210727]
[1764055972435,0.4532,2922.5,2921.5,10.65263827]
[1764055972593,0.4532,2922.5,2921.5,8.56210727]
[1764055973202,0.4532,2922.5,2921.5,8.34510727]
[1764055973401,0.4532,2922.5,2921.5,8.56210727]
[1764055974238,0.4532,2922.8,2921.5,10.68727927]
[1764055974402,0.1962,2922.9,2921.5,14.57727927]
[1764055974606,0.1962,2922.9,2921.5,14.55743915]
[1764055975301,0.002,2922.9,2922.6,18.021977]
[1764055975640,0.002,2923.7,2921.6,1.13329811]
[1764055975641,0.002,2923.7,2923.3,8.161408]
[1764055975838,0.002,2923.7,2923.3,13.97280274]
[1764055976130,0.002,2923.7,2923.6,32.41869266]
[1764055976346,0.002,2924.0,2923.8,0.72559411]
[1764055976500,0.002,2924.0,2923.9,21.85766048]
[1764055976703,3.41815182,2925.6,2924.0,0.72559411]
[1764055976704,0.4965,2925.6,2924.0,0.72559411]
[1764055977023,0.1853,2925.7,2925.3,0.1]
[1764055977024,0.4965,2925.5,2925.3,0.1]
[1764055977210,0.4965,2925.5,2925.4,0.217]
[1764055977743,0.9901,2925.5,2925.4,0.217]
[1764055978961,4.4083191,2925.5,2925.4,0.217]
[1764055980276,0.9901,2925.5,2925.4,0.217]
[1764055980763,0.9901,2925.5,2925.2,0.217]
[1764055980764,0.405504,2925.4,2925.2,0.217]
[1764055980964,0.405504,2925.4,2923.8,0.72779411]
[1764055980965,0.03402069,2925.3,2924.0,1.02757497]
[1764055981172,0.405504,2925.2,2924.1,0.1]
[1764055981370,0.902004,2925.2,2924.2,0.217]
[1764055981571,0.405504,2925.1,2924.2,0.217]
[1764055981772,0.4936,2924.3,2924.1,0.1]
[1764055981962,0.4936,2924.2,2923.8,0.1]
[1764055982135,0.4936,2923.9,2923.6,0.1]
[1764055982334,0.9901,2923.9,2923.7,0.217]
[1764055982534,0.9901,2923.9,2923.7,0.94259411]
[1764055982734,0.4936,2923.8,2923.7,0.217]
[1764055982931,0.4936,2923.8,2923.6,0.82559411]
[1764055983168,0.4936,2923.8,2923.7,0.217]
[1764055983374,0.4965,2923.9,2923.7,0.217]
[1764055983879,0.4965,2924.8,2924.0,0.1]
[1764055984043,0.1853,2925.7,2924.7,0.0022]
[1764055984242,0.1853,2925.7,2924.8,0.94259411]
[1764055984611,0.1853,2925.7,2925.6,0.1]
[1764055984734,4.59338543,2925.7,2925.4,0.217]
[1764055985065,4.59338543,2925.7,2925.1,0.217]
[1764055985066,0.405504,2925.4,2925.1,0.217]
[1764055985443,0.4936,2925.2,2925.1,0.217]
[1764055985935,0.9901,2925.2,2925.1,0.217]
[1764055986338,4.40866967,2925.2,2925.1,0.217]
[1764055988056,0.9901,2925.2,2925.1,0.217]
[1764055989266,4.40866967,2925.2,2925.1,0.217]
[1764055990041,0.9901,2925.2,2925.1,0.217]
[1764055990241,0.4936,2925.2,2924.7,3.51910274]
[1764055990452,3.91218212,2925.2,2924.8,0.217]
[1764055990647,4.40870594,2925.2,2924.8,0.217]
[1764055991269,0.9901,2925.2,2924.8,0.217]
[1764055991566,4.4087013,2925.2,2924.8,0.217]
[1764055991768,0.9901,2925.2,2924.8,0.217]
[1764055991943,3.9121936,2925.2,2924.8,0.217]
[1764055992143,0.4965,2925.1,2924.8,0.217]
[1764055992341,3.91521965,2925.1,2924.8,0.217]
[1764055992559,0.4965,2925.1,2924.8,0.217]
[1764055993273,3.915188,2925.1,2924.8,0.217]
[1764055993571,0.4965,2925.1,2924.8,0.217]
[1764055994343,0.902004,2925.4,2924.8,3.63603097]
[1764055994952,0.405504,2925.4,2924.8,3.73603097]
[1764055995148,0.4965,2925.4,2924.8,3.73603097]
[1764055997186,3.91490321,2925.4,2924.8,0.317]
[1764055997782,0.4965,2925.3,2924.8,0.317]
[1764055998280,0.405504,2925.5,2924.9,0.72559411]
[1764055998455,0.405504,2925.5,2924.9,4.24440705]
[1764055998862,3.41812943,2925.6,2924.9,4.24440705]
[1764055999070,0.4965,2925.5,2924.9,4.24440705]
[1764055999455,0.4965,2925.5,2924.9,7.66332735]
[1764055999670,0.188,2926.1,2924.9,7.78252735]
[1764055999874,0.4883,2926.0,2925.4,0.1]
[1764056000072,0.4883,2926.0,2925.5,0.217]
[1764056000595,0.4883,2926.0,2924.5,0.72559411]
[1764056000596,0.4553,2925.6,2924.5,0.72559411]
[1764056000931,0.1739,2924.8,2924.6,0.217]
[1764056001187,0.860804,2925.5,2924.7,0.1]
[1764056001351,0.405504,2925.3,2924.7,0.1]
[1764056001767,0.4883,2925.2,2924.7,0.1]
[1764056001988,0.4883,2925.2,2924.4,0.72559411]
[1764056001989,0.6529,2924.8,2924.4,0.72559411]
[1764056002192,0.4553,2924.7,2924.5,0.217]
[1764056002390,0.4553,2924.7,2924.1,3.52198578]
[1764056002391,0.4553,2924.5,2924.2,0.1]
[1764056002553,0.4553,2924.5,2923.5,3.08376029]
[1764056002554,0.4553,2924.3,2923.8,0.1]
[1764056002751,3.41944917,2924.5,2923.2,0.2192]
[1764056002752,0.4883,2924.2,2923.9,0.217]
[1764056002950,0.4553,2924.0,2923.9,0.217]
[1764056003181,0.4553,2924.0,2923.5,0.1]
[1764056003384,0.4553,2923.6,2923.2,0.1]
[1764056003590,0.405504,2923.8,2923.3,0.217]
[1764056003766,0.893804,2923.8,2923.3,0.217]
[1764056003964,0.4553,2923.4,2923.3,0.217]
[1764056004962,0.4883,2923.7,2923.3,0.217]
[1764056005558,3.90864095,2923.7,2923.3,0.217]
[1764056005979,0.4553,2923.4,2923.3,0.217]
[1764056006178,0.4883,2923.6,2923.3,0.217]
[1764056006668,0.4553,2923.4,2923.3,0.217]
[1764056007068,0.9436,2923.4,2923.3,0.217]
[1764056007387,0.9436,2923.4,2922.8,0.117]
[1764056007692,0.4553,2923.2,2922.7,3.52149382]
[1764056007855,0.4553,2923.2,2922.8,0.217]
[1764056008062,0.4883,2923.1,2922.8,0.217]
[1764056009818,0.4883,2923.1,2922.7,0.1]
[1764056009819,0.4553,2922.9,2922.7,0.1]
[1764056009984,0.4553,2922.9,2922.8,0.217]
[1764056011805,0.4883,2923.1,2922.8,0.217]
[1764056012380,0.405504,2923.4,2922.8,3.73836071]
[1764056012582,0.4553,2922.9,2922.8,0.217]
[1764056012881,0.4553,2922.9,2922.5,3.42171473]
[1764056013184,1.1412,2922.9,2922.6,0.217]
[1764056013506,1.1412,2922.9,2922.2,0.2192]
[1764056013507,0.4553,2922.6,2922.2,0.1]
[1764056013705,0.4553,2922.6,2922.3,0.217]
[1764056014009,0.6859,2922.9,2922.4,3.42184505]
[1764056014207,0.1976,2922.9,2922.3,3.6389193]
[1764056014379,0.4883,2922.8,2922.3,3.6389193]
[1764056015409,0.4553,2922.4,2922.1,0.1]
[1764056015710,0.4883,2922.8,2922.2,0.217]
[1764056015896,0.1976,2922.9,2922.4,0.1]
[1764056016123,0.6859,2922.9,2922.4,0.1]
[1764056016829,0.1976,2922.9,2922.4,0.1]
[1764056017533,0.1976,2922.9,2922.5,3.42172797]
[1764056017710,0.6859,2922.9,2922.4,3.52179525]
[1764056017912,0.6859,2922.9,2922.1,0.1]
[1764056017913,0.4553,2922.5,2922.1,0.1]
[1764056018109,7.5284609,2922.9,2921.8,3.42251941]
[1764056018110,0.4553,2922.2,2921.8,3.42251941]
[1764056018443,0.4553,2922.2,2921.9,0.217]
[1764056018734,0.6529,2921.9,2921.3,0.001]
[1764056018932,0.4553,2921.4,2921.3,0.001]
[1764056019134,0.4553,2921.4,2921.3,0.218]
[1764056019314,0.4883,2921.8,2921.3,0.218]
[1764056019707,0.4883,2921.8,2921.3,3.64113162]
[1764056020212,0.1976,2921.9,2921.4,0.217]
[1764056020415,0.4883,2922.3,2921.9,0.1]
[1764056020610,0.4883,2922.3,2921.9,0.317]
[1764056022108,4.55277812,2922.6,2921.9,3.63940941]
[1764056022315,5.04107812,2922.6,2922.0,0.1]
[1764056022517,0.4883,2922.5,2922.0,0.1]
[1764056023337,0.405504,2922.6,2922.0,0.1]
[1764056024240,3.82714374,2922.6,2922.0,3.52224682]
[1764056025010,0.4883,2922.5,2921.9,3.63938957]
[1764056025215,0.405504,2922.6,2922.2,0.1]
[1764056025544,0.4883,2922.5,2922.3,0.217]
[1764056025714,0.4883,2922.5,2921.9,6.84482018]
[1764056025913,0.4883,2922.5,2922.1,0.1]
[1764056026114,0.4883,2922.5,2922.1,3.52216171]
[1764056026516,0.4883,2922.5,2922.1,0.1]
[1764056026717,3.91004235,2922.5,2922.0,0.217]
[1764056027019,3.91004235,2922.5,2922.0,3.73931028]
[1764056027020,0.4883,2922.5,2922.0,3.73931028]
[1764056029134,3.91004784,2922.5,2922.0,0.317]
[1764056029452,0.4883,2922.4,2922.0,3.73927606]
[1764056029837,3.61914945,2922.7,2922.0,3.73927606]
[1764056030043,0.484,2922.6,2922.0,3.73927606]
[1764056030550,3.90568272,2922.6,2921.4,4.1092]
[1764056030760,0.4938,2922.1,2921.7,0.1]
[1764056031164,0.484,2922.5,2921.7,0.1]
[1764056032551,0.484,2922.5,2922.0,0.1]
[1764056032757,3.90576119,2922.5,2922.1,0.217]
[1764056033237,0.4938,2922.2,2922.1,0.217]
[1764056038446,0.484,2922.4,2922.1,3.63919636]
[1764056038658,0.484,2922.4,2922.1,0.217]
[1764056039331,3.90584546,2922.4,2922.1,0.217]
[1764056039531,0.4582,2922.2,2922.1,0.217]
[1764056040245,0.484,2922.4,2922.1,0.217]
[1764056040554,0.4582,2922.2,2922.1,0.217]
[1764056041254,0.95,2922.2,2922.1,0.217]
[1764056043167,4.31891539,2922.6,2922.1,0.4362]
[1764056043370,0.897304,2922.6,2922.1,3.95832618]
[1764056044054,3.82712788,2922.6,2922.1,3.95832618]
[1764056044254,0.4582,2922.2,2922.1,0.317]
[1764056044463,0.4582,2922.2,2921.9,0.72559411]
[1764056044640,0.4582,2922.0,2921.8,0.72559411]
[1764056044842,0.4582,2922.0,2921.9,0.217]
[1764056045760,0.4918,2922.4,2921.9,0.4362]
[1764056046091,0.4918,2922.4,2921.9,3.85855454]
[1764056047968,0.4582,2922.0,2921.9,0.217]
[1764056048377,0.95,2922.0,2921.6,0.72659411]
[1764056048585,0.4582,2921.7,2921.6,0.001]
[1764056048761,0.4582,2921.7,2921.6,0.94359411]
[1764056049851,0.4582,2921.7,2921.6,3.64078203]
[1764056050068,0.405504,2922.4,2921.6,3.85998203]
[1764056050273,0.405504,2922.4,2921.6,7.38276406]
[1764056050468,0.897304,2922.4,2921.6,7.38276406]
[1764056050688,3.91341089,2922.6,2921.9,0.1]
[1764056050871,3.91341089,2922.6,2922.0,0.217]
[1764056051255,0.4918,2922.6,2922.0,0.217]
[1764056051571,7.04070404,2922.7,2922.0,0.217]
[1764056051752,0.4918,2922.5,2922.0,0.217]
[1764056051953,0.4918,2922.5,2922.0,3.63925626]
[1764056052353,3.91353578,2922.5,2922.0,3.63925626]
[1764056053374,3.42164731,2922.6,2922.0,3.63925626]
[1764056053602,0.4918,2922.4,2922.0,3.63925626]
[1764056054407,3.91344731,2922.6,2922.0,3.63925626]
[1764056054811,3.42164731,2922.6,2922.0,3.63925626]
[1764056055105,0.4918,2922.5,2922.0,3.63925626]
[1764056055506,0.4918,2922.5,2922.0,0.217]
[1764056055803,0.4918,2922.5,2922.0,3.63929987]
[1764056056576,3.91353738,2922.5,2922.0,3.63929987]
[1764056056807,0.4918,2922.5,2922.0,3.63929987]
[1764056057002,0.4918,2922.4,2922.0,3.63929987]
[1764056059403,3.82712624,2922.6,2922.0,3.63929987]
[1764056059707,4.31892624,2922.6,2922.0,3.63929987]
[1764056060294,0.4573,2922.5,2922.0,3.63929987]
[1764056061510,0.1976,2922.9,2922.0,3.63929987]
[1764056061511,0.6549,2922.9,2922.4,0.2192]
[1764056061824,0.862804,2922.8,2922.5,0.217]
[1764056062320,0.4778,2922.6,2922.5,0.217]
[1764056062699,0.9351,2922.6,2922.5,0.217]
[1764056068826,7.77833476,2922.6,2921.9,0.001]
[1764056069015,7.77833476,2922.6,2922.0,0.217]
[1764056069016,0.4778,2922.4,2922.0,0.217]
[1764056069350,0.4778,2922.0,2921.9,0.001]
[1764056069563,0.883304,2922.0,2921.9,0.001]
[1764056069761,1.340604,2922.0,2921.9,0.001]
[1764056070823,5.48851159,2922.0,2921.9,0.001]
[1764056074635,0.4778,2922.0,2921.9,0.001]
[1764056074948,4.35741348,2922.0,2921.9,0.001]
[1764056075247,4.76291748,2922.0,2921.9,0.001]
[1764056077050,0.4778,2922.0,2921.9,0.001]
[1764056077250,0.405504,2922.2,2921.9,0.001]
[1764056077722,3.82758942,2922.2,2921.9,0.001]
[1764056077923,0.405504,2922.2,2921.9,0.001]
[1764056078123,3.87931224,2922.3,2921.9,0.001]
[1764056078324,0.4573,2922.7,2922.2,0.2192]
[1764056078741,1.18289411,2922.7,2922.2,0.2192]
[1764056078946,0.405504,2922.6,2922.2,0.2192]
[1764056079235,0.862804,2922.6,2922.2,0.2192]
[1764056079428,4.28447624,2922.6,2922.2,0.2192]
[1764056079751,0.4778,2922.3,2921.9,0.001]
[1764056079953,0.4573,2922.5,2921.9,0.001]
[1764056080131,0.4573,2922.5,2921.9,3.42342804]
[1764056081434,3.8790743,2922.5,2921.9,3.42342804]
[1764056081642,3.8790743,2922.5,2922.0,0.217]
[1764056082063,0.862804,2922.8,2922.4,0.2192]
[1764056082360,4.28426429,2922.8,2922.4,0.2192]
[1764056082535,0.405504,2922.6,2922.0,0.5362]
[1764056083136,0.405504,2922.6,2922.0,0.217]
[1764056083534,0.862804,2922.5,2922.0,0.217]
[1764056084041,0.4573,2922.4,2922.0,0.217]
[1764056085050,0.4573,2922.4,2922.0,3.63928043]
[1764056085666,0.4573,2922.4,2922.0,0.217]
[1764056086579,3.87917193,2922.4,2922.0,0.217]
[1764056086986,0.4778,2922.1,2921.9,0.001]
[1764056087281,0.4573,2922.3,2921.9,0.218]
[1764056087282,0.4778,2922.0,2921.9,0.218]
[1764056087777,0.9351,2922.0,2921.9,0.218]
[1764056087978,0.9351,2922.0,2921.9,0.001]
[1764056087979,4.35741348,2922.0,2921.9,0.001]
[1764056088166,4.39143417,2922.0,2921.9,0.001]
[1764056088677,4.35741348,2922.0,2921.9,0.001]
[1764056088848,4.39143417,2922.0,2921.9,0.001]
[1764056089976,4.35741348,2922.0,2921.9,0.001]
[1764056090275,0.9351,2922.0,2921.9,0.001]
[1764056090580,4.35741348,2922.0,2921.9,0.001]
[1764056091576,3.42231348,2922.0,2921.9,0.001]
[1764056091777,4.36621348,2922.0,2921.9,0.218]
[1764056093170,4.36621348,2922.0,2921.9,0.001]
[1764056093481,4.80573817,2922.0,2921.9,0.001]
[1764056094253,5.53133228,2922.0,2921.9,0.001]
[1764056095272,5.49731159,2922.0,2921.9,0.001]
[1764056095668,5.53133228,2922.0,2921.9,0.001]
[1764056095888,5.49731159,2922.0,2921.9,0.001]
[1764056096087,4.29801748,2922.0,2921.9,0.001]
[1764056096386,4.77171748,2922.0,2921.9,0.001]
[1764056098084,4.29801748,2922.0,2921.9,0.001]
[1764056098793,4.76671748,2922.0,2921.9,0.001]
[1764056100661,2.85104771,2923.1,2921.9,0.2202]
[1764056100860,3.42137676,2922.8,2922.0,0.2192]
[1764056101086,0.72559411,2922.7,2922.0,0.2192]
[1764056101286,0.405504,2922.6,2922.0,0.2192]
[1764056101487,0.874204,2922.6,2922.0,0.2192]
[1764056101895,0.405504,2922.4,2922.0,0.2192]
[1764056102565,3.8274249,2922.4,2922.0,0.2192]
[1764056102767,4.2961249,2922.4,2922.0,0.2192]
[1764056103203,3.8273032,2922.5,2922.0,0.2192]
[1764056103777,4.2960032,2922.5,2922.0,0.2192]
[1764056104562,0.4687,2922.4,2922.0,0.2192]
[1764056104959,3.89056861,2922.4,2922.0,0.2192]
[1764056105364,0.4687,2922.4,2922.1,0.217]
[1764056105574,0.405504,2922.5,2922.1,0.217]
[1764056105779,0.405504,2922.4,2922.1,0.217]
[1764056106702,1.39189411,2922.9,2922.3,0.2192]
[1764056107016,3.42025229,2923.8,2922.8,0.2192]
[1764056107017,0.4687,2923.6,2922.8,0.2192]
[1764056107167,6.84041316,2923.8,2923.0,0.2192]
[1764056107503,3.42020658,2923.8,2923.1,0.117]
[1764056107673,3.56953856,2923.9,2923.2,0.1]
[1764056108089,0.405504,2923.8,2923.2,0.1]
[1764056108294,0.874204,2923.8,2923.1,0.117]
[1764056108504,0.4687,2923.8,2923.1,0.117]
[1764056109002,0.4687,2923.8,2923.1,3.63797536]
[1764056109003,3.88901595,2923.8,2923.1,3.63797536]
[1764056109202,3.88901595,2923.8,2923.1,0.217]
[1764056109203,7.3093319,2923.8,2923.1,0.217]
[1764056109602,0.874204,2923.7,2923.1,0.117]
[1764056109997,0.4687,2923.6,2923.1,0.117]
[1764056111185,0.4687,2923.6,2922.7,0.2192]
[1764056111186,0.405504,2923.4,2922.7,0.2192]
[1764056111385,0.4547,2923.2,2922.5,0.117]
[1764056111707,0.72559411,2923.4,2922.1,3.4221756]
[1764056111708,0.405504,2923.0,2922.1,3.4221756]
[1764056111909,0.03402069,2922.9,2922.2,0.217]
[1764056112217,0.1836,2922.9,2922.2,0.217]
[1764056113291,0.1836,2922.9,2922.3,3.42196215]
[1764056113636,3.60488179,2922.9,2922.3,3.42196215]
[1764056113816,0.1836,2922.9,2922.3,3.42196215]
[1764056114404,3.6048867,2922.9,2922.2,3.63905929]
[1764056114813,0.1836,2922.9,2922.2,3.63905929]
[1764056115020,3.60489069,2922.9,2922.2,3.63905929]
[1764056115599,0.1836,2922.9,2922.2,7.06113854]
[1764056115812,0.405504,2923.2,2922.3,0.3192]
[1764056116017,0.405504,2923.2,2921.9,0.001]
[1764056116018,0.405504,2923.0,2921.9,0.001]
[1764056116201,0.4547,2922.3,2921.9,0.001]
[1764056116404,0.405504,2922.8,2922.0,0.217]
[1764056116824,0.405504,2922.8,2921.9,0.001]
[1764056116825,0.4547,2922.1,2921.9,0.001]
[1764056116987,0.9234,2922.0,2921.9,0.001]
[1764056117510,4.34571348,2922.0,2921.9,0.001]
[1764056117908,4.75121748,2922.0,2921.9,0.001]
[1764056119193,4.28251748,2922.0,2921.9,0.001]
[1764056119692,0.4547,2922.0,2921.9,0.001]
[1764056119903,0.405504,2922.1,2921.9,0.001]
[1764056120398,0.4955,2922.0,2921.9,0.001]
[1764056120848,0.405504,2922.1,2921.9,0.2202]
[1764056122215,3.42222293,2922.1,2921.9,0.2202]
[1764056122828,3.42222293,2922.1,2921.9,0.001]
[1764056124013,3.42196241,2922.3,2922.0,0.2192]
[1764056124218,0.405504,2922.5,2922.0,0.2192]
[1764056124627,0.405504,2922.5,2922.0,0.4384]
[1764056124857,0.72559411,2922.4,2922.0,0.4384]
[1764056125069,0.72559411,2922.4,2922.0,0.2192]
[1764056125257,0.4747,2922.3,2921.9,0.001]
[1764056125746,0.72559411,2922.4,2921.9,0.001]
[1764056125942,3.42196215,2922.3,2921.9,0.001]
[1764056126779,3.89666215,2922.3,2921.9,0.001]
[1764056128339,7.3186243,2922.3,2921.9,0.001]
[1764056129068,0.4955,2922.0,2921.9,0.218]
[1764056129638,0.9702,2922.0,2921.9,0.001]
[1764056130371,4.39251348,2922.0,2921.9,0.001]
[1764056130746,4.79801748,2922.0,2921.9,0.001]
[1764056131171,5.55763228,2922.0,2921.9,0.001]
[1764056133986,5.44778287,2922.0,2921.9,0.001]
[1764056134198,1.5167487,2922.0,2921.9,0.001]
[1764056134553,5.41376218,2922.0,2921.9,0.001]
[1764056136491,5.44778287,2922.0,2921.9,0.001]
[1764056138585,5.41376218,2922.0,2921.9,0.001]
[1764056138899,0.405504,2921.6,2921.1,0.0377]
[1764056139193,0.405504,2921.6,2921.1,0.217]
[1764056139353,0.4747,2921.6,2921.1,0.217]
[1764056139968,0.405504,2921.5,2920.7,0.001]
[1764056140370,6.84650142,2921.2,2920.7,0.001]
[1764056140774,3.42325071,2921.2,2920.7,0.001]
[1764056140971,3.82867454,2921.3,2921.1,0.1107]
[1764056141205,3.42294665,2921.5,2921.1,0.1107]
[1764056141497,0.72559411,2921.6,2921.4,0.1107]
[1764056141807,7.31992748,2921.8,2921.2,0.217]
[1764056142008,3.42260735,2921.8,2921.2,0.3277]
[1764056142378,6.84522748,2921.8,2921.2,0.3277]
[1764056142579,0.405504,2921.8,2921.2,0.3277]
[1764056142779,0.405504,2921.8,2921.2,3.75094307]
[1764056142963,0.405504,2921.8,2921.2,0.3277]
[1764056143289,0.405504,2921.8,2921.2,3.75091609]
[1764056143897,0.405504,2921.8,2921.2,0.3277]
[1764056145298,3.42266488,2921.7,2921.2,0.3277]
[1764056146006,6.84532976,2921.7,2921.2,0.3277]
[1764056146167,7.32002976,2921.7,2921.2,0.217]
[1764056146870,3.42266488,2921.7,2921.2,0.217]
[1764056147079,6.84532976,2921.7,2921.2,0.217]
[1764056147503,7.32002976,2921.7,2921.2,0.217]
[1764056147724,1.10667257,2922.9,2921.6,0.1107]
[1764056147910,7.31745352,2922.8,2921.7,0.217]
[1764056148207,0.405504,2922.7,2921.8,0.1]
[1764056148418,0.72559411,2922.7,2921.8,0.2059]
[1764056148628,0.72559411,2922.7,2922.0,0.1]
[1764056149202,0.72559411,2922.7,2922.0,0.2059]
[1764056149609,3.42161089,2922.6,2922.0,0.2059]
[1764056149806,3.42161089,2922.6,2922.0,3.62821205]
[1764056150194,3.42161089,2922.6,2922.0,0.2059]
[1764056150391,0.405504,2922.5,2922.0,0.1]
[1764056150711,0.4792,2922.1,2921.4,0.1]
[1764056150913,0.4792,2922.1,2921.6,0.217]
[1764056151235,0.9598,2922.1,2921.6,0.217]
[1764056151413,0.03402069,2922.0,2921.6,0.217]
[1764056151601,6.84486122,2921.9,2921.6,0.217]
[1764056151804,3.42243061,2921.9,2921.6,0.217]
[1764056152518,3.90303061,2921.9,2921.6,0.217]
[1764056152719,3.90303061,2921.9,2921.2,0.1]
[1764056152909,3.42243061,2921.9,2921.4,0.217]
[1764056153109,0.405504,2922.1,2921.4,0.217]
[1764056153428,0.405504,2922.1,2921.5,0.1059]
[1764056153429,7.24989672,2922.1,2921.5,0.1059]
[1764056154496,7.24989672,2922.1,2921.4,0.217]
[1764056155113,3.42219636,2922.1,2921.5,0.1059]
[1764056155936,0.72559411,2922.2,2921.5,0.1069]
[1764056156136,0.002,2922.0,2921.5,0.1069]
[1764056157143,0.002,2922.0,2921.5,0.001]
[1764056157547,0.4902,2921.9,2921.5,0.001]
[1764056157951,3.42254774,2921.8,2921.5,0.001]
[1764056159844,3.42243061,2921.9,2921.5,0.001]
[1764056160407,6.84489372,2921.9,2921.5,0.001]
[1764056160821,0.4932,2921.6,2921.5,0.001]
[1764056161112,0.9834,2921.6,2921.5,0.001]
[1764056161713,1.388904,2921.6,2921.5,0.001]
[1764056162012,4.81168603,2921.6,2921.5,0.001]
[1764056163921,5.53728014,2921.6,2921.5,0.001]
[1764056164114,9.49046152,2921.6,2921.5,0.001]
[1764056165250,5.53728014,2921.6,2921.5,0.001]
[1764056167574,5.57130083,2921.6,2921.5,0.001]
[1764056168622,5.53728014,2921.6,2921.5,0.001]
[1764056171865,5.53728014,2921.6,2921.3,0.001]
[1764056171866,1.13109811,2921.5,2921.3,0.001]
[1764056172171,5.82850018,2921.4,2921.3,0.001]
[1764056172352,6.31870018,2921.4,2921.3,0.001]
[1764056172967,9.74171654,2921.4,2921.3,0.001]
[1764056173169,9.70769585,2921.4,2921.3,0.001]
[1764056176677,9.30219185,2921.4,2921.3,0.001]
[1764056177375,9.70769585,2921.4,2921.3,0.001]
[1764056181584,9.49069585,2921.4,2921.3,0.001]
[1764056181890,9.70769585,2921.4,2921.3,0.001]
[1764056186996,4.64321047,2921.4,2921.3,0.001]